[Event "German-ch Women 2024"]
[Site "Ostfildern"]
[Date "2024.08.19"]
[Round "1.9"]
[White "Wilmink, Anna"]
[Black "Bursan, Ana-Maria"]
[Result "1-0"]
[ECO "C15"]
[WhiteElo "1905"]
[BlackElo "1719"]
[Annotator "NA RC"]
[PlyCount "83"]
[EventDate "2024.08.16"]
[EventType "tourn"]
[EventCountry "GER"]
[SourceTitle "playchess.com"]
[Source "ChessBase"]
[SourceQuality "1"]
[TimeControl "40/5400+30:1800+30"]

1. e4 {[%emt 0:00:03]} e6 {[%emt 0:00:09]} 2. d4 {[%emt 0:00:05]} d5 {[%emt 0:00:09]} 3. Nc3 {[%emt 0:00:05]} Bb4 {[%emt 0:00:13]} 4. Nge2 {[%emt 0:00:08]} dxe4 {[%emt 0:01:29]} 5. a3 {[%emt 0:00:19]} Be7 {[%emt 0:02:45]} 6. Nxe4 {[%emt 0:00:12]} Nf6 {[%emt 0:01:12]} 7. N2g3 {[%emt 0:00:09]} O-O {[%emt 0:03:46]} 8. c3 {[%emt 0:03:37]} Nbd7 {[%emt 0:05:20]} 9. Bd3 {[%emt 0:03:17]} c5 {[%emt 0:03:07]} 10. dxc5 {[%emt 0:05:26]} Nxc5 {[%emt 0:02:19]} 11. Nxc5 {[%emt 0:11:15]} Bxc5 {[%emt 0:00:25]} 12. O-O {[%emt 0:01:01]} Bd7 $11 {[%emt 0:05:53]} 13. Bg5 {[%emt 0:06:22]} Bc6 {[%emt 0:07:05]} 14. Bxf6 {[%emt 0:03:08]} Qxf6 {[%emt 0:01:12]} 15. Qh5 {[%emt 0:00:39]} Rfc8 {[%emt 0:11:44]} 16. Bxh7+ {[%emt 0:09:40]} Kh8 {[%emt 0:02:40]} 17. Bc2+ {[%emt 0:20:16]} Qh6 {[%emt 0:05:38]} 18. Qxc5 {[%emt 0:06:26]} Bxg2 {[%emt 0:02:02]} 19. Qh5 {[%emt 0:08:45]} Qxh5 {[%emt 0:04:56]} 20. Nxh5 {[%emt 0:00:13]} Bxf1 {[%emt 0:00:20]} 21. Kxf1 {[%emt 0:00:51]} Rc5 {[%emt 0:05:31]} 22. Nf4 {[%emt 0:03:50]} Rd8 {[%emt 0:02:02]} 23. Ke2 {[%emt 0:02:05]} Re5+ {[%emt 0:03:30]} 24. Kf3 {[%emt 0:02:59]} Rd2 {[%emt 0:02:36]} 25. Be4 {[%emt 0:01:01]} Rb5 {[%emt 0:06:16]} 26. b4 {[%emt 0:02:02]} g5 {[%emt 0:02:29]} 27. Ke3 {[%emt 0:00:58]} Rd8 {[%emt 0:01:47]} 28. Nd3 {[%emt 0:01:35]} f5 {[%emt 0:02:44]} 29. Bg2 {[%emt 0:02:53]} Rb6 {[%emt 0:06:31]} 30. Ne5 {[%emt 0:01:16]} Kg7 {[%emt 0:02:34]} 31. Nc4 {[%emt 0:00:37]} f4+ {[%emt 0:01:04]} 32. Ke2 {[%emt 0:00:41]} Rb5 {[%emt 0:01:01]} 33. Be4 {[%emt 0:02:47]} g4 {[%emt 0:01:44]} 34. Rg1 {[%emt 0:00:27]} Rg5 {[%emt 0:02:05]} 35. h4 {[%emt 0:00:29]} Rh5 {[%emt 0:02:49]} 36. Rxg4+ {[%emt 0:00:09]} Kf6 {[%emt 0:00:33]} 37. Rxf4+ {[%emt 0:00:21]} Ke7 {[%emt 0:00:21]} 38. Bg6 {[%emt 0:00:37]} Rhd5 {[%emt 0:00:28]} 39. Rf7+ {[%emt 0:00:56]} Ke8 {[%emt 0:00:06]} 40. a4 {[%emt 0:01:28]} Rc8 {[%emt 0:00:44]} 41. Ne3 {[%emt 0:30:39]} Re5 {[%emt 0:30:44]} 42. Rf5+ {[%emt 0:00:20]} 1-0

[Event "German-ch Women 2024"]
[Site "Ostfildern"]
[Date "2024.08.19"]
[Round "1.10"]
[White "Sokyrko, Sofiia"]
[Black "Mader, Lena"]
[Result "0-1"]
[ECO "D90"]
[WhiteElo "1585"]
[BlackElo "1876"]
[Annotator "NA RC"]
[PlyCount "96"]
[EventDate "2024.08.16"]
[EventType "tourn"]
[EventCountry "GER"]
[SourceTitle "playchess.com"]
[Source "ChessBase"]
[SourceQuality "1"]
[TimeControl "40/5400+30:1800+30"]

1. d4 {[%emt 0:01:02]} d5 {[%emt 0:00:50]} 2. c4 {[%emt 0:00:26]} c6 {[%emt 0:00:43]} 3. Nc3 {[%emt 0:01:17]} Nf6 {[%emt 0:00:44]} 4. cxd5 {[%emt 0:03:59]} cxd5 {[%emt 0:00:22]} 5. Nf3 {[%emt 0:13:39]} Nc6 {[%emt 0:00:44]} 6. Bf4 {[%emt 0:08:24]} a6 {[%emt 0:09:29]} 7. e3 {[%emt 0:01:26]} g6 $14 {[%emt 0:12:31]} (7... Bf5 $11) 8. Bd3 {[%emt 0:03:06]} Bg7 {[%emt 0:00:13]} 9. a3 {[%emt 0:03:45]} O-O {[%emt 0:00:55]} 10. h3 {[%emt 0:01:33]} b5 {[%emt 0:13:53]} 11. Rc1 {[%emt 0:24:21]} Bd7 {[%emt 0:02:39]} 12. O-O {[%emt 0:01:23]} Rc8 {[%emt 0:01:58]} 13. Ne5 {[%emt 0:01:18]} Na5 {[%emt 0:18:31]} 14. b4 {[%emt 0:03:47]} Nc4 {[%emt 0:02:08]} 15. Nxc4 {[%emt 0:00:29]} dxc4 {[%emt 0:00:29]} 16. Bc2 {[%emt 0:00:17]} Bc6 {[%emt 0:04:42]} 17. e4 {[%emt 0:03:23]} e6 {[%emt 0:02:34]} 18. Bg5 {[%emt 0:07:00]} Qb6 {[%emt 0:01:36]} 19. d5 {[%emt 0:02:38]} exd5 {[%emt 0:01:52]} 20. exd5 {[%emt 0:00:07]} Ba8 {[%emt 0:04:41]} 21. Qd2 {[%emt 0:01:41]} Rcd8 {[%emt 0:00:59]} 22. Rcd1 {[%emt 0:02:54]} Rd7 {[%emt 0:02:04]} 23. Bh6 {[%emt 0:01:15]} Rfd8 {[%emt 0:05:41]} 24. Bxg7 {[%emt 0:00:10]} Kxg7 {[%emt 0:00:01]} 25. Qf4 {[%emt 0:02:24]} Nxd5 {[%emt 0:04:29]} 26. Nxd5 {[%emt 0:00:12]} Rxd5 {[%emt 0:00:16]} 27. Rxd5 {[%emt 0:01:12]} Rxd5 {[%emt 0:01:15]} 28. Be4 {[%emt 0:00:15]} Rd8 {[%emt 0:00:29]} 29. Bc2 {[%emt 0:02:01]} Qd6 {[%emt 0:02:03]} 30. Qc1 {[%emt 0:00:58]} Qf6 {[%emt 0:00:55]} 31. Qe1 {[%emt 0:01:32]} Rd7 {[%emt 0:00:26]} 32. Qe3 {[%emt 0:02:29]} Re7 {[%emt 0:00:46]} 33. Qg3 {[%emt 0:00:07]} Qe5 {[%emt 0:01:12]} 34. Qg4 {[%emt 0:01:14]} Bd5 {[%emt 0:01:05]} 35. f4 {[%emt 0:03:09]} h5 {[%emt 0:02:13]} 36. Qd1 {[%emt 0:01:09]} Qe3+ {[%emt 0:00:28]} 37. Kh2 {[%emt 0:00:15]} Be4 {[%emt 0:01:55]} 38. Bxe4 {[%emt 0:00:39]} Qxe4 {[%emt 0:00:02]} 39. f5 {[%emt 0:00:10]} Qe5+ {[%emt 0:00:45]} 40. Kh1 {[%emt 0:00:09]} Re8 {[%emt 0:00:13]} 41. Qc1 {[%emt 0:31:06]} Rd8 {[%emt 0:30:30]} 42. f6+ {[%emt 0:00:36]} Kh7 {[%emt 0:00:17]} 43. Qc2 {[%emt 0:01:47]} Rd3 {[%emt 0:00:00]} 44. Qf2 {[%emt 0:00:00]} Qd5 {[%emt 0:00:00]} 45. Kh2 {[%emt 0:00:00]} Rd2 {[%emt 0:00:00]} 46. Qg3 {[%emt 0:00:00]} Qd6 {[%emt 0:00:00]} 47. Rf4 {[%emt 0:00:00]} Rd3 {[%emt 0:00:00]} 48. Qf2 {[%emt 0:00:00]} g5 {[%emt 0:00:00]} 0-1

[Event "German-ch Women 2024"]
[Site "Ostfildern"]
[Date "2024.08.20"]
[Round "2.1"]
[White "Novikova, Margarita"]
[Black "Kostak, Tetyana"]
[Result "1-0"]
[ECO "C41"]
[WhiteElo "1991"]
[BlackElo "2094"]
[Annotator "RC"]
[PlyCount "103"]
[EventDate "2024.08.16"]
[EventType "tourn"]
[EventCountry "GER"]
[SourceTitle "playchess.com"]
[Source "ChessBase"]
[SourceQuality "1"]
[TimeControl "40/5400+30:1800+30"]

1. d4 {[%emt 0:00:04]} d6 {[%emt 0:00:33]} 2. e4 {[%emt 0:01:01]} Nf6 {[%emt 0:01:01]} 3. Nc3 {[%emt 0:00:32]} Nbd7 {[%emt 0:00:42]} 4. Nf3 {[%emt 0:01:32]} e5 {[%emt 0:00:32]} 5. dxe5 {[%emt 0:08:17]} dxe5 {[%emt 0:00:07]} 6. Bc4 {[%emt 0:01:39]} Bc5 {[%emt 0:00:29]} 7. Bg5 {[%emt 0:02:19]} c6 {[%emt 0:03:10]} 8. O-O {[%emt 0:07:40]} b5 {[%emt 0:04:33]} 9. Bd3 {[%emt 0:05:54]} h6 {[%emt 0:00:48]} 10. Bd2 {[%emt 0:03:43]} O-O {[%emt 0:11:28]} 11. a3 {[%emt 0:02:58]} Re8 {[%emt 0:01:15]} 12. b4 {[%emt 0:03:54]} Bb6 {[%emt 0:03:23]} 13. a4 {[%emt 0:02:36]} bxa4 {[%emt 0:02:39]} 14. Nxa4 {[%emt 0:00:45]} Bc7 {[%emt 0:00:10]} 15. h3 {[%emt 0:02:45]} Rb8 {[%emt 0:05:00]} 16. Qe2 {[%emt 0:03:54]} Bd6 {[%emt 0:02:54]} 17. c3 {[%emt 0:02:53]} c5 {[%emt 0:07:12]} 18. b5 {[%emt 0:01:04]} Bb7 {[%emt 0:00:43]} 19. Nb2 {[%emt 0:01:27]} Nb6 {[%emt 0:03:41]} 20. Rxa7 {[%emt 0:03:13]} c4 {[%emt 0:01:25]} 21. Nxc4 {[%emt 0:00:35]} Nxc4 {[%emt 0:00:08]} 22. Bxc4 {[%emt 0:00:03]} Bc5 {[%emt 0:00:06]} 23. Bxf7+ {[%emt 0:12:12]} Kxf7 {[%emt 0:04:51]} 24. Rxb7+ {[%emt 0:02:56]} Rxb7 {[%emt 0:00:42]} 25. Qc4+ {[%emt 0:00:02]} Kg6 {[%emt 0:00:13]} 26. Qxc5 {[%emt 0:00:16]} Kh7 {[%emt 0:09:53]} 27. Be3 {[%emt 0:02:19]} Qd3 {[%emt 0:02:49]} 28. c4 {[%emt 0:03:01]} Qxe4 {[%emt 0:03:29]} 29. Nd2 {[%emt 0:00:52]} Qd3 {[%emt 0:02:04]} 30. Qc6 {[%emt 0:01:21]} Rbb8 {[%emt 0:03:15]} 31. b6 {[%emt 0:06:20]} Rec8 {[%emt 0:02:08]} 32. Qb5 {[%emt 0:00:29]} Nd7 {[%emt 0:00:40]} 33. Qa5 {[%emt 0:11:05]} Qd6 {[%emt 0:08:13]} 34. Rb1 {[%emt 0:05:11]} Nc5 {[%emt 0:02:33]} 35. Rb5 {[%emt 0:00:52]} Nb7 {[%emt 0:00:46]} 36. Qc3 {[%emt 0:00:49]} Nc5 {[%emt 0:00:42]} 37. Qc2+ {[%emt 0:00:25]} Kh8 {[%emt 0:01:49]} 38. Bxc5 {[%emt 0:00:51]} Qd7 {[%emt 0:11:42]} 39. Qb2 {[%emt 0:00:52]} Rd8 {[%emt 0:00:47]} 40. Be3 {[%emt 0:00:23]} Qc6 {[%emt 0:00:49]} 41. Qxe5 {[%emt 0:31:09]} Rb7 {[%emt 0:01:23]} 42. Qe4 {[%emt 0:00:00]} Qc8 {[%emt 0:01:09]} 43. c5 {[%emt 0:00:00]} Re8 {[%emt 0:00:21]} 44. Qf3 {[%emt 0:00:00]} Rf8 {[%emt 0:00:39]} 45. Qe2 {[%emt 0:00:00]} Qc6 {[%emt 0:01:53]} 46. Nb3 {[%emt 0:00:00]} Qe4 {[%emt 0:05:23]} 47. Na5 {[%emt 0:00:00]} Rbf7 {[%emt 0:08:13]} 48. Qc4 {[%emt 0:00:00]} Qe5 {[%emt 0:00:33]} 49. Qd4 {[%emt 0:00:00]} Qf5 {[%emt 0:01:32]} 50. b7 {[%emt 0:00:00]} Rb8 {[%emt 0:02:00]} 51. Qd6 {[%emt 0:00:00]} Rff8 {[%emt 0:05:21]} 52. Nc6 {[%emt 0:00:00]} 1-0

[Event "German-ch Women 2024"]
[Site "Ostfildern"]
[Date "2024.08.20"]
[Round "2.2"]
[White "Wagenschuetz, Evelyn"]
[Black "Wilmink, Anna"]
[Result "1/2-1/2"]
[ECO "C63"]
[WhiteElo "2070"]
[BlackElo "1905"]
[Annotator "RC"]
[PlyCount "100"]
[EventDate "2024.08.16"]
[EventType "tourn"]
[EventCountry "GER"]
[SourceTitle "playchess.com"]
[Source "ChessBase"]
[SourceQuality "1"]
[TimeControl "40/5400+30:1800+30"]

1. e4 {[%emt 0:00:02]} e5 {[%emt 0:00:10]} 2. Nf3 {[%emt 0:00:18]} Nc6 {[%emt 0:00:14]} 3. Bb5 {[%emt 0:00:10]} f5 {[%emt 0:00:13]} 4. d3 {[%emt 0:04:17]} Nf6 {[%emt 0:00:36]} 5. Qe2 {[%emt 0:01:39]} fxe4 6. dxe4 {[%emt 0:01:04]} Bc5 {[%emt 0:06:11]} 7. O-O {[%emt 0:01:09]} d6 {[%emt 0:01:53]} 8. h3 {[%emt 0:02:17]} O-O {[%emt 0:03:12]} 9. Bxc6 {[%emt 0:07:37]} bxc6 {[%emt 0:00:19]} 10. Qc4+ {[%emt 0:08:58]} Kh8 {[%emt 0:00:18]} 11. Nxe5 {[%emt 0:01:27]} Bxf2+ {[%emt 0:08:17]} 12. Rxf2 {[%emt 0:00:38]} dxe5 {[%emt 0:00:45]} 13. Nc3 {[%emt 0:03:52]} Qe8 {[%emt 0:07:42]} 14. Qc5 {[%emt 0:04:10]} Bd7 {[%emt 0:05:54]} 15. Be3 {[%emt 0:08:03]} Qg6 {[%emt 0:04:05]} 16. Rf3 {[%emt 0:00:53]} Rae8 {[%emt 0:05:21]} 17. Raf1 {[%emt 0:01:17]} Rg8 {[%emt 0:03:30]} 18. Qxa7 {[%emt 0:07:59]} Nxe4 {[%emt 0:02:53]} 19. Nxe4 {[%emt 0:05:55]} Qxe4 {[%emt 0:00:26]} 20. Qxc7 {[%emt 0:00:13]} Be6 {[%emt 0:02:22]} 21. R1f2 {[%emt 0:13:55]} Bd5 {[%emt 0:06:01]} 22. Rg3 {[%emt 0:02:09]} Qb4 {[%emt 0:03:26]} 23. c3 {[%emt 0:04:40]} Qe7 {[%emt 0:05:54]} 24. Qxe7 {[%emt 0:01:11]} Rxe7 {[%emt 0:00:06]} 25. Bc5 {[%emt 0:00:33]} Rf7 {[%emt 0:02:25]} 26. Rxf7 {[%emt 0:02:18]} Bxf7 {[%emt 0:00:09]} 27. a4 {[%emt 0:01:54]} Ra8 {[%emt 0:03:20]} 28. Bd6 {[%emt 0:02:12]} Rxa4 {[%emt 0:03:07]} 29. Bxe5 {[%emt 0:00:40]} Bg6 {[%emt 0:00:33]} 30. b4 {[%emt 0:01:13]} Ra7 {[%emt 0:01:40]} 31. Kf2 {[%emt 0:01:21]} Kg8 {[%emt 0:00:58]} 32. Ke3 {[%emt 0:00:45]} Rd7 {[%emt 0:02:32]} 33. Bd4 {[%emt 0:01:21]} Re7+ {[%emt 0:02:09]} 34. Kd2 {[%emt 0:00:16]} Rd7 {[%emt 0:03:25]} 35. Kc1 {[%emt 0:02:40]} Bf5 {[%emt 0:03:50]} 36. Re3 {[%emt 0:01:58]} h5 {[%emt 0:02:49]} 37. Re5 {[%emt 0:02:09]} g6 {[%emt 0:01:04]} 38. Kd2 {[%emt 0:01:26]} Kf7 {[%emt 0:01:20]} 39. Ke3 {[%emt 0:01:03]} Re7 {[%emt 0:03:16]} 40. Kf4 {[%emt 0:00:38]} Rxe5 {[%emt 0:00:40]} 41. Kxe5 {[%emt 0:31:42]} Ke7 {[%emt 0:30:15]} 42. h4 {[%emt 0:00:00]} Kd7 {[%emt 0:00:00]} 43. Bc5 {[%emt 0:00:00]} Kc7 {[%emt 0:00:00]} 44. c4 {[%emt 0:00:00]} Bd3 {[%emt 0:00:00]} 45. Bd6+ {[%emt 0:00:00]} Kb7 {[%emt 0:00:00]} 46. Kd4 {[%emt 0:00:00]} Bf5 {[%emt 0:00:00]} 47. Kc5 {[%emt 0:00:00]} Be4 {[%emt 0:00:00]} 48. g3 {[%emt 0:00:00]} Bf5 {[%emt 0:00:00]} 49. b5 {[%emt 0:00:00]} cxb5 {[%emt 0:00:00]} 50. cxb5 {[%emt 0:00:00]} Bd3 {[%emt 0:00:00]} 1/2-1/2

[Event "German-ch Women 2024"]
[Site "Ostfildern"]
[Date "2024.08.20"]
[Round "2.3"]
[White "Mader, Lena"]
[Black "Miljkovic, Jovana"]
[Result "0-1"]
[ECO "A36"]
[WhiteElo "1876"]
[BlackElo "2021"]
[Annotator "RC"]
[PlyCount "147"]
[EventDate "2024.08.16"]
[EventType "tourn"]
[EventCountry "GER"]
[SourceTitle "playchess.com"]
[Source "ChessBase"]
[SourceQuality "1"]
[TimeControl "40/5400+30:1800+30"]

1. c4 {[%emt 0:00:02]} c5 {[%emt 0:00:03]} 2. g3 {[%emt 0:00:10]} Nc6 {[%emt 0:00:12]} 3. Bg2 {[%emt 0:00:10]} g6 {[%emt 0:00:07]} 4. e3 {[%emt 0:00:47]} Bg7 {[%emt 0:00:37]} 5. Ne2 {[%emt 0:00:21]} d6 {[%emt 0:02:49]} 6. Nbc3 {[%emt 0:11:16]} Nh6 {[%emt 0:02:00]} 7. d3 {[%emt 0:08:39]} Bg4 {[%emt 0:05:15]} 8. h3 {[%emt 0:01:52]} Bd7 {[%emt 0:00:16]} 9. Rb1 {[%emt 0:01:30]} O-O {[%emt 0:02:37]} 10. O-O {[%emt 0:00:33]} Rb8 {[%emt 0:05:52]} 11. a3 {[%emt 0:00:31]} a5 {[%emt 0:00:38]} 12. b3 {[%emt 0:11:54]} Nf5 {[%emt 0:04:06]} 13. Bb2 {[%emt 0:02:13]} h5 {[%emt 0:01:29]} 14. Nb5 {[%emt 0:04:12]} Ne5 {[%emt 0:03:29]} 15. d4 {[%emt 0:06:57]} cxd4 {[%emt 0:05:08]} 16. Nbxd4 {[%emt 0:05:27]} Nc6 {[%emt 0:03:32]} 17. Nxf5 {[%emt 0:02:27]} Bxf5 {[%emt 0:01:32]} 18. Bxg7 {[%emt 0:02:31]} Kxg7 {[%emt 0:00:22]} 19. e4 {[%emt 0:05:36]} Bd7 {[%emt 0:01:16]} 20. Nc3 {[%emt 0:05:00]} Be6 {[%emt 0:03:59]} 21. Kh2 {[%emt 0:01:10]} Qc8 {[%emt 0:04:51]} 22. Rb2 {[%emt 0:03:27]} Rh8 {[%emt 0:03:46]} 23. f4 {[%emt 0:05:10]} f6 {[%emt 0:03:58]} 24. Rbf2 {[%emt 0:01:12]} Bf7 {[%emt 0:01:42]} 25. Nb5 {[%emt 0:00:32]} a4 {[%emt 0:01:52]} 26. bxa4 {[%emt 0:07:05]} Bxc4 {[%emt 0:01:34]} 27. Re1 {[%emt 0:00:01]} Qg8 {[%emt 0:04:22]} 28. Nd4 {[%emt 0:00:40]} Qd8 {[%emt 0:09:38]} 29. Bf1 {[%emt 0:02:21]} Bf7 {[%emt 0:01:15]} 30. Bb5 {[%emt 0:00:27]} Qb6 {[%emt 0:03:44]} 31. Rd2 {[%emt 0:01:29]} Nxd4 {[%emt 0:01:39]} 32. Rxd4 {[%emt 0:00:02]} h4 {[%emt 0:02:40]} 33. Rg1 {[%emt 0:02:14]} e5 {[%emt 0:07:01]} 34. Rd2 {[%emt 0:02:50]} hxg3+ {[%emt 0:02:28]} 35. Rxg3 {[%emt 0:00:02]} exf4 {[%emt 0:00:09]} 36. Rf3 {[%emt 0:01:30]} Rbd8 {[%emt 0:00:43]} 37. Rxf4 {[%emt 0:01:50]} Qe3 {[%emt 0:00:52]} 38. Rf3 {[%emt 0:01:40]} Qxe4 {[%emt 0:00:24]} 39. Rdf2 {[%emt 0:01:27]} Qe5+ {[%emt 0:00:54]} 40. Rg3 {[%emt 0:01:49]} Rh4 {[%emt 0:01:43]} 41. Qe2 {[%emt 0:31:17]} Re4 {[%emt 0:31:09]} 42. Qb2 {[%emt 0:00:35]} Rd4 {[%emt 0:02:39]} 43. Qc3 {[%emt 0:00:00]} Rh8 {[%emt 0:00:00]} 44. Qe3 {[%emt 0:00:00]} Bd5 {[%emt 0:00:00]} 45. Qxe5 {[%emt 0:00:00]} dxe5 {[%emt 0:00:00]} 46. Rc3 {[%emt 0:00:00]} f5 {[%emt 0:00:00]} 47. Rfc2 {[%emt 0:00:00]} Be4 {[%emt 0:00:00]} 48. Re2 {[%emt 0:00:00]} Rd1 {[%emt 0:00:00]} 49. Rxe4 {[%emt 0:00:00]} fxe4 {[%emt 0:00:00]} 50. Rc7+ {[%emt 0:00:00]} Kf6 {[%emt 0:00:00]} 51. Rxb7 {[%emt 0:00:00]} Rd2+ {[%emt 0:00:00]} 52. Kg3 {[%emt 0:00:00]} Ra2 {[%emt 0:00:00]} 53. h4 {[%emt 0:00:41]} Rxa3+ {[%emt 0:00:00]} 54. Kg4 {[%emt 0:00:01]} Ra1 {[%emt 0:00:00]} 55. Rb6+ {[%emt 0:00:22]} Ke7 {[%emt 0:02:47]} 56. Rb7+ {[%emt 0:01:09]} Kd6 {[%emt 0:02:00]} 57. Rd7+ {[%emt 0:00:32]} Kc5 {[%emt 0:00:21]} 58. Rc7+ {[%emt 0:00:59]} Kd4 {[%emt 0:01:02]} 59. Kg5 {[%emt 0:03:36]} Rg1+ {[%emt 0:00:55]} 60. Kf6 {[%emt 0:00:05]} Rxh4 {[%emt 0:03:06]} 61. Rd7+ {[%emt 0:00:10]} Kc3 {[%emt 0:01:23]} 62. Kxe5 {[%emt 0:00:02]} Rg5+ {[%emt 0:01:19]} 63. Kf6 {[%emt 0:00:29]} Rg3 {[%emt 0:00:16]} 64. Ke5 {[%emt 0:01:45]} e3 {[%emt 0:00:37]} 65. Rd3+ {[%emt 0:00:53]} Kc2 {[%emt 0:00:36]} 66. Rd6 {[%emt 0:00:36]} Rg5+ {[%emt 0:00:45]} 67. Ke6 {[%emt 0:00:28]} Rxb5 {[%emt 0:02:31]} 68. axb5 {[%emt 0:00:01]} e2 {[%emt 0:00:10]} 69. Rc6+ {[%emt 0:00:10]} Kd3 {[%emt 0:00:07]} 70. Rd6+ {[%emt 0:00:14]} Rd4 {[%emt 0:00:07]} 71. Rxd4+ {[%emt 0:00:33]} Kxd4 {[%emt 0:00:04]} 72. Kd6 {[%emt 0:00:27]} e1=Q {[%emt 0:00:11]} 73. b6 {[%emt 0:00:10]} Qb4+ {[%emt 0:00:14]} 74. Kc7 {[%emt 0:00:07]} 0-1

[Event "German-ch Women 2024"]
[Site "Ostfildern"]
[Date "2024.08.20"]
[Round "2.4"]
[White "Walker, Julia"]
[Black "Braun, Kristin"]
[Result "0-1"]
[ECO "B06"]
[WhiteElo "1836"]
[BlackElo "2001"]
[Annotator "NA RC"]
[PlyCount "46"]
[EventDate "2024.08.16"]
[EventType "tourn"]
[EventCountry "GER"]
[SourceTitle "playchess.com"]
[Source "ChessBase"]
[SourceQuality "1"]
[TimeControl "40/5400+30:1800+30"]

1. e4 {[%emt 0:00:02]} c5 {[%emt 0:00:05]} 2. c3 {[%emt 0:00:06]} d5 {[%emt 0:00:05]} 3. exd5 {[%emt 0:00:05]} Qxd5 {[%emt 0:00:10]} 4. d4 {[%emt 0:00:06]} g6 {[%emt 0:01:17]} 5. Nf3 {[%emt 0:00:45]} Bg7 {[%emt 0:00:33]} 6. Na3 {[%emt 0:00:28]} cxd4 {[%emt 0:00:48]} 7. Bc4 {[%emt 0:00:06]} Qe4+ {[%emt 0:01:42]} 8. Be3 {[%emt 0:00:36]} Nh6 {[%emt 0:02:53]} 9. Nb5 {[%emt 0:01:20]} O-O {[%emt 0:04:06]} 10. cxd4 {[%emt 0:01:55]} Nf5 {[%emt 0:01:15]} 11. Qb3 {[%emt 0:05:55]} Nxe3 {[%emt 0:11:36]} 12. fxe3 {[%emt 0:12:35]} Nc6 {[%emt 0:09:05]} 13. Bxf7+ {[%emt 0:15:08]} Kh8 {[%emt 0:00:07]} 14. Bd5 {[%emt 0:03:45]} Qg4 {[%emt 0:04:56]} 15. Nc7 $16 {[%emt 0:15:15]} Rb8 {[%emt 0:09:17]} 16. Bxc6 {[%emt 0:09:36]} bxc6 {[%emt 0:00:08]} 17. Qxb8 {[%emt 0:05:22]} Qxg2 {[%emt 0:05:36]} 18. O-O-O {[%emt 0:04:51]} Qxf3 {[%emt 0:05:04]} 19. Qb3 {[%emt 0:05:18]} Bh6 {[%emt 0:03:48]} 20. Rde1 {[%emt 0:01:37]} Qe4 {[%emt 0:02:11]} 21. d5 {[%emt 0:06:48]} Rf2 {[%emt 0:07:01]} 22. Qd1 {[%emt 0:08:17]} Bf5 {[%emt 0:02:00]} 23. Re2 {[%emt 0:00:49]} Bxe3+ {[%emt 0:00:25]} 0-1

[Event "German-ch Women 2024"]
[Site "Ostfildern"]
[Date "2024.08.20"]
[Round "2.5"]
[White "Bluebaum, Johanna"]
[Black "Foltin, Alica"]
[Result "0-1"]
[ECO "D45"]
[WhiteElo "1994"]
[BlackElo "1722"]
[Annotator "RC"]
[PlyCount "80"]
[EventDate "2024.08.16"]
[EventType "tourn"]
[EventCountry "GER"]
[SourceTitle "playchess.com"]
[Source "ChessBase"]
[SourceQuality "1"]
[TimeControl "40/5400+30:1800+30"]

1. d4 {[%emt 0:00:01]} d5 {[%emt 0:00:07]} 2. c4 {[%emt 0:00:07]} c6 {[%emt 0:00:03]} 3. Nc3 {[%emt 0:00:45]} Nf6 {[%emt 0:00:05]} 4. e3 {[%emt 0:00:55]} e6 {[%emt 0:00:06]} 5. Nf3 {[%emt 0:00:30]} Nbd7 {[%emt 0:00:13]} 6. Qc2 {[%emt 0:00:56]} Bd6 {[%emt 0:00:06]} 7. b3 {[%emt 0:04:29]} O-O {[%emt 0:04:16]} 8. Be2 {[%emt 0:02:27]} Re8 {[%emt 0:05:16]} 9. a4 {[%emt 0:02:42]} a5 {[%emt 0:01:48]} 10. Ba3 {[%emt 0:03:32]} Qe7 {[%emt 0:03:14]} 11. Bxd6 {[%emt 0:02:05]} Qxd6 {[%emt 0:01:45]} 12. O-O {[%emt 0:05:42]} e5 {[%emt 0:01:31]} 13. cxd5 {[%emt 0:02:41]} Nxd5 {[%emt 0:01:31]} 14. Nxd5 {[%emt 0:06:57]} cxd5 {[%emt 0:01:11]} 15. Bb5 {[%emt 0:02:17]} e4 {[%emt 0:03:25]} 16. Nd2 {[%emt 0:02:52]} Re6 {[%emt 0:05:58]} 17. f4 {[%emt 0:04:50]} exf3 {[%emt 0:02:02]} 18. Rxf3 {[%emt 0:07:53]} b6 {[%emt 0:08:46]} 19. Raf1 {[%emt 0:03:34]} Nf6 {[%emt 0:08:41]} 20. Rh3 {[%emt 0:03:29]} g6 {[%emt 0:12:29]} 21. Qd3 {[%emt 0:06:19]} Re7 {[%emt 0:03:10]} 22. Rg3 {[%emt 0:05:11]} Nh5 {[%emt 0:10:33]} 23. Rg5 {[%emt 0:05:53]} h6 {[%emt 0:01:33]} 24. Re5 {[%emt 0:07:12]} Bf5 {[%emt 0:06:27]} 25. Qe2 {[%emt 0:05:47]} Be6 {[%emt 0:04:45]} 26. Rxh5 {[%emt 0:06:22]} gxh5 {[%emt 0:00:10]} 27. Qxh5 {[%emt 0:00:16]} Bd7 {[%emt 0:02:49]} 28. Bxd7 {[%emt 0:00:50]} Rxd7 {[%emt 0:00:27]} 29. Rf4 {[%emt 0:01:18]} Rc8 {[%emt 0:12:33]} 30. Nf3 {[%emt 0:07:38]} Rc1+ {[%emt 0:00:00]} 31. Kf2 {[%emt 0:00:30]} Rc2+ {[%emt 0:01:00]} 32. Kf1 {[%emt 0:00:30]} Rc1+ {[%emt 0:00:00]} 33. Kf2 {[%emt 0:00:30]} Rc2+ {[%emt 0:01:00]} 34. Kg3 {[%emt 0:00:30]} f5 {[%emt 0:00:00]} 35. Kh3 {[%emt 0:00:00]} Rg7 {[%emt 0:00:00]} 36. g3 {[%emt 0:00:00]} Rf2 {[%emt 0:00:01]} 37. Qe8+ {[%emt 0:00:33]} Kh7 {[%emt 0:00:08]} 38. Qh5 {[%emt 0:00:22]} Re2 {[%emt 0:00:37]} 39. Qxf5+ {[%emt 0:00:25]} Qg6 {[%emt 0:00:55]} 40. Qxd5 {[%emt 0:01:40]} Rxh2+ {[%emt 0:01:49]} 0-1